bitfinex-derivatives/quotes_BTCF0:USTF0_20220103
["timestamp","ask_amount","ask_price","bid_price","bid_amount"]
[1641212577770,0.4,47360.0,47357.0,0.17911766]
[1641212578172,0.4,47360.0,47357.0,0.02111766]
[1641212578371,0.545,47360.0,47357.0,0.17811766]
[1641212579575,0.545,47360.0,47357.0,0.02111766]
[1641212579774,0.4,47360.0,47357.0,0.02111766]
[1641212580374,0.545,47360.0,47357.0,0.17811766]
[1641212580774,0.145,47360.0,47358.0,0.18]
[1641212581174,0.4,47359.0,47357.0,0.17811766]
[1641212581477,0.145,47360.0,47357.0,0.17811766]
[1641212581674,0.32033567,47367.0,47357.0,0.02111766]
[1641212582375,0.4,47362.0,47357.0,0.17211766]
[1641212582576,0.4,47364.0,47357.0,0.17211766]
[1641212582776,0.4,47364.0,47358.0,0.18]
[1641212583175,0.4,47364.0,47357.0,0.17211766]
[1641212583775,0.4,47364.0,47357.0,0.02111766]
[1641212583975,0.4,47364.0,47358.0,0.18]
[1641212584377,0.55,47364.0,47358.0,0.18]
[1641212584876,0.15,47364.0,47357.0,0.17611766]
[1641212585276,0.15,47364.0,47358.0,0.18]
[1641212585579,0.4,47365.0,47358.0,0.18]
[1641212585778,0.358815,47370.0,47361.0,0.20111582]
[1641212585979,0.758815,47370.0,47361.0,0.0922]
[1641212586278,0.879815,47370.0,47369.0,0.02111232]
[1641212586881,0.521,47370.0,47369.0,0.02111232]
[1641212587679,0.4,47370.0,47369.0,0.02111232]
[1641212588379,0.4,47370.0,47369.0,0.17911232]
[1641212588380,0.55,47370.0,47369.0,0.17911232]
[1641212589782,0.4,47370.0,47369.0,0.02111232]
[1641212590383,0.4,47370.0,47369.0,0.17911232]
[1641212590586,0.07317764,47373.0,47369.0,0.158]
[1641212590785,0.4,47370.0,47369.0,0.17911225]
[1641212591285,0.4,47370.0,47365.0,0.14033567]
[1641212591487,0.58,47366.0,47365.0,0.14033567]
[1641212591686,0.67547,47366.0,47365.0,0.14033567]
[1641212591887,0.49547,47366.0,47365.0,0.14033567]
[1641212592286,0.65647,47366.0,47365.0,0.14033567]
[1641212593189,0.76881639,47366.0,47365.0,0.14033567]
[1641212593787,0.60781639,47366.0,47365.0,0.14033567]
[1641212594392,0.77081639,47366.0,47365.0,0.14033567]
[1641212595691,0.60781639,47366.0,47365.0,0.14033567]
[1641212596390,0.77081639,47366.0,47365.0,0.14033567]
[1641212598391,0.91581639,47366.0,47365.0,0.14033567]
[1641212599593,0.51581639,47366.0,47365.0,0.14033567]
[1641212599791,0.11234639,47366.0,47365.0,0.14033567]
[1641212600396,0.26034639,47366.0,47365.0,0.14033567]
[1641212601590,1.45739469,47366.0,47365.0,0.14033567]
[1641212601791,1.30939469,47366.0,47365.0,0.14033567]
[1641212602391,1.45739469,47366.0,47365.0,0.14033567]
[1641212602693,1.3450483,47366.0,47365.0,0.14033567]
[1641212603692,1.1970483,47366.0,47365.0,0.14033567]
[1641212603894,1.30939469,47366.0,47365.0,0.14033567]
[1641212604093,0.11234639,47366.0,47365.0,0.14033567]
[1641212604293,0.26034639,47366.0,47365.0,0.14033567]
[1641212604797,0.148,47366.0,47365.0,0.14033567]
[1641212605195,0.26034639,47366.0,47365.0,0.14033567]
[1641212605795,0.11234639,47366.0,47365.0,0.14033567]
[1641212606295,0.26134639,47366.0,47365.0,0.14033567]
[1641212607598,1.09925754,47366.0,47365.0,0.14033567]
[1641212607898,0.95025754,47366.0,47365.0,0.14033567]
[1641212608297,1.09925754,47366.0,47365.0,0.14033567]
[1641212609602,0.95025754,47366.0,47365.0,0.14033567]
[1641212610409,1.09825754,47366.0,47365.0,0.14033567]
[1641212611110,1.09825754,47366.0,47365.0,0.34244649]
[1641212611310,1.09825754,47366.0,47365.0,0.34144649]
[1641212612009,0.95025754,47366.0,47365.0,0.34144649]
[1641212612414,1.09125754,47366.0,47365.0,0.47744649]
[1641212612612,0.97891115,47366.0,47365.0,0.47744649]
[1641212612812,0.73948942,47366.0,47365.0,0.47844649]
[1641212613211,0.00010057,47367.0,47365.0,1.58644649]
[1641212613413,1.1970483,47369.0,47366.0,0.001]
[1641212613711,1.57688079,47377.0,47368.0,1.31010701]
[1641212613712,0.14033567,47377.0,47368.0,1.31010701]
[1641212613913,0.14033567,47377.0,47376.0,0.181]
[1641212614112,0.14033567,47377.0,47376.0,0.27187]
[1641212614311,0.14033567,47377.0,47376.0,0.09187]
[1641212614511,0.14033567,47377.0,47376.0,0.41787]
[1641212614714,0.14033567,47377.0,47376.0,0.41687]
[1641212614911,1.43654512,47378.0,47376.0,0.23787]
[1641212615115,0.09632937,47377.0,47376.0,0.23687]
[1641212615315,0.09632937,47377.0,47376.0,0.23787]
[1641212615512,0.09632937,47377.0,47376.0,0.41687]
[1641212615712,0.09632937,47377.0,47376.0,0.27187]
[1641212616324,1.43654512,47379.0,47377.0,1.107]
[1641212616524,1.43654512,47379.0,47378.0,0.009794]
[1641212616724,1.43654512,47379.0,47378.0,1.117794]
[1641212616926,1.43654512,47380.0,47378.0,0.010794]
[1641212617128,1.43654512,47380.0,47378.0,0.009794]
[1641212617730,1.43654512,47380.0,47379.0,0.02110566]
[1641212617929,1.43654512,47381.0,47379.0,0.02110566]
[1641212618128,1.43654512,47381.0,47380.0,1.287]
[1641212618727,1.43654512,47383.0,47380.0,1.287]
[1641212618934,1.43654512,47383.0,47382.0,1.287]
[1641212619127,1.43654512,47383.0,47382.0,1.288]
[1641212619728,1.55653669,47390.0,47383.0,0.009794]
[1641212619927,1.55653669,47390.0,47389.0,0.001]
[1641212620430,0.4,47390.0,47389.0,0.147]
[1641212620629,0.4,47392.0,47389.0,0.147]
[1641212620829,1.69687236,47394.0,47390.0,1.116794]
[1641212621029,1.69687236,47394.0,47390.0,0.009794]
[1641212621629,0.14033567,47394.0,47390.0,0.009794]
[1641212622530,0.4,47393.0,47390.0,0.151794]
[1641212622731,0.75806859,47396.0,47392.0,0.001]
[1641212622933,0.75806859,47396.0,47392.0,0.02110059]
[1641212623131,0.35806859,47396.0,47392.0,0.02110059]
[1641212623531,0.4,47393.0,47392.0,0.02110059]
[1641212623733,0.4,47393.0,47392.0,0.02210059]
[1641212623931,0.4,47393.0,47392.0,0.02110059]
[1641212624333,0.49840426,47397.0,47392.0,1.12910059]
[1641212624535,0.49840426,47397.0,47392.0,0.16510059]
[1641212624732,0.49840426,47397.0,47392.0,0.144]
[1641212624932,0.49840426,47397.0,47396.0,0.0210987]
[1641212625132,0.89840426,47397.0,47396.0,0.0220987]
[1641212625335,0.54033567,47397.0,47396.0,0.0210987]
[1641212625732,0.4,47397.0,47396.0,0.0210987]
[1641212626533,0.4,47397.0,47396.0,0.1620987]
[1641212626735,0.4,47398.0,47396.0,1.2700987]
[1641212626933,0.37806859,47399.0,47397.0,0.001]
[1641212627134,0.37806859,47399.0,47398.0,0.001]
[1641212627333,0.37806859,47399.0,47396.0,1.2690987]
[1641212627634,0.37806859,47399.0,47398.0,0.18]
[1641212627932,0.37806859,47399.0,47398.0,1.42733567]
[1641212628136,0.02,47399.0,47398.0,1.24733567]
[1641212628534,0.02,47399.0,47398.0,1.39133567]
[1641212628735,0.02,47399.0,47398.0,1.39233567]
[1641212628934,0.02,47399.0,47398.0,0.28433567]
[1641212629136,0.42,47399.0,47398.0,0.28533567]
[1641212629336,0.42,47399.0,47398.0,1.39233567]
[1641212629735,0.42,47399.0,47398.0,1.24833567]
[1641212629935,0.02,47399.0,47398.0,1.24833567]
[1641212630335,0.42,47399.0,47398.0,1.24833567]
[1641212630535,0.02,47399.0,47398.0,1.38333567]
[1641212630839,0.42,47399.0,47398.0,1.38333567]
[1641212631936,0.02,47399.0,47398.0,1.42833567]
[1641212632137,0.02,47399.0,47398.0,1.24833567]
[1641212632338,0.02,47399.0,47398.0,1.24733567]
[1641212632539,0.02,47399.0,47398.0,1.38233567]
[1641212632737,0.42,47399.0,47398.0,1.38233567]
[1641212632937,0.02,47399.0,47398.0,1.38233567]
[1641212633137,0.42,47399.0,47398.0,1.38233567]
[1641212633341,0.42,47399.0,47398.0,0.27533567]
[1641212633739,0.02,47399.0,47398.0,0.14033567]
[1641212633941,0.42,47399.0,47398.0,0.14033567]
[1641212634339,0.42,47399.0,47398.0,0.14133567]
[1641212634539,0.42,47399.0,47398.0,0.27733567]
[1641212635042,0.02,47399.0,47398.0,0.52609567]
[1641212635240,0.02,47399.0,47398.0,0.34609567]
[1641212635439,0.35806859,47403.0,47398.0,1.45309567]
[1641212635640,1.23535507,47406.0,47398.0,1.45309567]
[1641212635641,0.35806859,47404.0,47402.0,1.288]
[1641212635844,0.35806859,47404.0,47403.0,0.15012967]
[1641212636140,0.35806859,47404.0,47403.0,1.25812967]
[1641212636543,0.35806859,47404.0,47403.0,1.39112967]
[1641212636741,0.35806859,47406.0,47403.0,1.39112967]
[1641212636941,0.35806859,47406.0,47405.0,0.001]
[1641212637445,0.35806859,47406.0,47403.0,0.28412967]
[1641212637843,0.35806859,47406.0,47403.0,0.15012967]
[1641212638145,0.4,47405.0,47403.0,0.15012967]
[1641212638543,0.4,47405.0,47403.0,0.28512967]
[1641212638744,0.4,47405.0,47403.0,0.27533567]
[1641212639145,0.4,47405.0,47404.0,0.001]
[1641212639445,0.4,47405.0,47403.0,0.27533567]
[1641212639644,0.4,47405.0,47404.0,0.001]
[1641212639844,0.4,47405.0,47403.0,0.14033567]
[1641212640247,0.4,47405.0,47404.0,0.001]
[1641212640446,0.58,47405.0,47404.0,0.02209482]
[1641212640646,0.58,47405.0,47380.0,1.19827803]
[1641212640850,0.18,47400.0,47395.0,0.02110071]
[1641212641049,0.18,47400.0,47399.0,0.59041528]
[1641212641248,0.58,47400.0,47399.0,0.59041528]
[1641212641547,0.58,47400.0,47398.0,0.82667393]
[1641212641950,0.58,47400.0,47398.0,0.56827393]
[1641212642349,0.6697969,47400.0,47392.0,0.73833573]
[1641212642547,0.4,47393.0,47392.0,0.73833573]
[1641212643451,0.4,47393.0,47392.0,0.7594369]
[1641212644148,0.4,47393.0,47392.0,0.16143684]
[1641212644548,0.538,47393.0,47392.0,0.16143684]
[1641212644948,0.138,47393.0,47392.0,0.16143684]
[1641212645149,0.538,47393.0,47392.0,0.16143684]
[1641212645350,0.6277969,47393.0,47392.0,0.16143684]
[1641212645548,0.2277969,47393.0,47392.0,0.16143684]
[1641212645748,0.4897969,47393.0,47392.0,0.16143684]
[1641212646350,1.92679232,47393.0,47392.0,0.16143684]
[1641212646552,2.05979232,47393.0,47392.0,0.25143684]
[1641212647051,1.65979232,47393.0,47392.0,0.25143684]
[1641212647252,2.05979232,47393.0,47392.0,0.25143684]
[1641212647454,0.6227969,47393.0,47392.0,0.25143684]
[1641212647754,0.2227969,47393.0,47392.0,0.34143684]
[1641212647953,0.0897969,47393.0,47392.0,0.34143684]
[1641212648154,0.0897969,47393.0,47392.0,0.16143684]
[1641212648554,0.1907969,47393.0,47392.0,1.57843684]
[1641212649158,0.1907969,47393.0,47392.0,1.57943684]
[1641212649556,0.1907969,47393.0,47392.0,1.70824445]
[1641212649955,0.0897969,47393.0,47392.0,1.57724445]
[1641212650156,0.0897969,47393.0,47392.0,1.57824445]
[1641212650357,1.28714965,47393.0,47392.0,1.57824445]
[1641212650555,1.28714965,47393.0,47392.0,1.53324445]
[1641212650756,1.28714965,47393.0,47392.0,1.71324445]
[1641212650955,1.28714965,47393.0,47392.0,1.83297934]
[1641212651558,1.19735275,47393.0,47392.0,1.83197934]
[1641212651757,1.19735275,47393.0,47392.0,1.71858012]
[1641212651955,1.19735275,47393.0,47392.0,1.71758012]
[1641212652157,1.19735275,47393.0,47392.0,1.71858012]
[1641212652558,1.28235275,47393.0,47392.0,1.85358012]
[1641212652959,0.085,47393.0,47392.0,1.85358012]
[1641212653559,0.1747969,47393.0,47392.0,1.85358012]
[1641212653759,0.0897969,47393.0,47392.0,1.71858012]
[1641212654462,0.1407969,47393.0,47392.0,1.67458012]
[1641212655460,0.1407969,47393.0,47392.0,1.85358012]
[1641212655662,0.1407969,47393.0,47392.0,1.85458012]
[1641212655861,0.0897969,47393.0,47392.0,1.71858012]
[1641212656262,1.19735275,47394.0,47392.0,1.83831089]
[1641212656461,1.19735275,47394.0,47393.0,0.001]
[1641212656661,1.19735275,47394.0,47392.0,1.85358012]
[1641212657063,1.19735275,47394.0,47393.0,0.12980761]
[1641212657277,1.19735275,47394.0,47393.0,1.23580761]
[1641212658477,1.19735275,47394.0,47393.0,1.55180761]
[1641212658877,1.19735275,47394.0,47393.0,1.37180761]
[1641212659077,1.19735275,47394.0,47393.0,1.55180761]
[1641212659277,1.19735275,47394.0,47393.0,1.55280761]
[1641212659485,1.19735275,47394.0,47393.0,1.55380761]
[1641212659878,1.19735275,47394.0,47393.0,1.41780761]
[1641212660278,1.19735275,47395.0,47393.0,1.23780761]
[1641212660477,1.19735275,47395.0,47394.0,0.002]
[1641212660680,1.19735275,47395.0,47394.0,1.289]
[1641212660878,1.19735275,47395.0,47394.0,1.23780761]
[1641212661078,1.19735275,47395.0,47394.0,1.41780761]
[1641212661279,1.19735275,47395.0,47394.0,1.41680761]
[1641212661478,1.19735275,47395.0,47394.0,1.41780761]
[1641212662579,1.19735275,47395.0,47394.0,1.54980761]
[1641212662780,1.19735275,47395.0,47394.0,1.54880761]
[1641212663582,1.19735275,47395.0,47394.0,1.54980761]
[1641212663783,1.19735275,47395.0,47394.0,1.43790137]
[1641212663982,1.19735275,47395.0,47394.0,1.43890137]
[1641212664181,1.19735275,47396.0,47394.0,1.43890137]
[1641212664381,1.19735275,47396.0,47395.0,1.289]
[1641212664583,1.19735275,47396.0,47395.0,1.298794]
[1641212664981,1.19735275,47396.0,47395.0,1.297794]
[1641212665181,0.83486565,47396.0,47395.0,1.42760161]
[1641212665783,0.83486565,47396.0,47395.0,1.43957356]
[1641212666181,0.83486565,47396.0,47395.0,1.42760161]
[1641212666382,0.83486565,47396.0,47395.0,1.42660161]
[1641212666583,0.83486565,47396.0,47395.0,1.55960161]
[1641212666783,1.23486565,47396.0,47395.0,0.45260161]
[1641212666983,0.4,47396.0,47395.0,0.26080761]
[1641212667187,1.59735275,47396.0,47395.0,1.45804894]
[1641212667684,1.59735275,47396.0,47395.0,1.32604894]
[1641212667984,0.4,47396.0,47395.0,1.32604894]
[1641212668585,0.527,47396.0,47395.0,1.51004894]
[1641212668987,0.527,47396.0,47395.0,1.45004894]
[1641212669187,0.527,47396.0,47395.0,1.63104894]
[1641212669387,0.527,47396.0,47395.0,1.45104894]
[1641212669589,0.527,47396.0,47395.0,1.09093772]
[1641212669789,0.4,47396.0,47395.0,0.96793772]
[1641212670488,0.527,47396.0,47395.0,1.09193772]
[1641212671689,0.527,47396.0,47395.0,0.96793772]
[1641212671889,0.4,47396.0,47395.0,0.96793772]
[1641212672489,0.4,47396.0,47395.0,1.09293772]
[1641212672490,0.527,47396.0,47395.0,1.09293772]
[1641212672890,0.527,47396.0,47395.0,1.09193772]
[1641212673090,0.527,47396.0,47395.0,1.09293772]
[1641212673791,0.4,47396.0,47395.0,0.96793772]
[1641212674391,0.529,47396.0,47395.0,1.09293772]
[1641212675595,0.529,47396.0,47395.0,1.27293772]
[1641212675596,0.129,47396.0,47395.0,1.27293772]
[1641212675794,0.4,47399.0,47395.0,1.14793772]
[1641212675995,0.4,47399.0,47398.0,0.14033567]
[1641212676294,0.4,47399.0,47398.0,0.14133567]
[1641212676494,0.526,47399.0,47398.0,0.26433567]
[1641212676895,0.526,47399.0,47398.0,0.26333567]
[1641212677096,0.526,47399.0,47398.0,0.26433567]
[1641212677297,0.526,47399.0,47398.0,0.26333567]
[1641212677797,0.4,47399.0,47398.0,0.14033567]
[1641212677998,0.4,47399.0,47398.0,0.86778571]
[1641212678397,0.527,47399.0,47398.0,0.99078571]
[1641212679198,0.527,47399.0,47398.0,0.99178571]
[1641212679803,0.4,47399.0,47398.0,0.86878571]
[1641212680199,0.4,47399.0,47398.0,0.7389781]
[1641212680400,0.527,47399.0,47398.0,0.26433567]
[1641212681602,0.527,47399.0,47398.0,0.26333567]
[1641212681802,0.527,47399.0,47398.0,0.26433567]
[1641212682406,0.527,47399.0,47398.0,0.26533567]
[1641212682604,0.527,47399.0,47398.0,0.9527746]
[1641212682804,0.527,47399.0,47398.0,0.9537746]
[1641212683004,0.527,47399.0,47398.0,0.26433567]
[1641212683907,0.4,47399.0,47398.0,0.14033567]
[1641212684509,0.51,47399.0,47398.0,0.24433567]
[1641212685909,0.4,47399.0,47398.0,0.14033567]
[1641212686612,0.514,47399.0,47398.0,0.24733567]
[1641212687814,0.4,47399.0,47398.0,0.14033567]
[1641212688515,0.519,47399.0,47398.0,0.25333567]
[1641212689515,0.519,47399.0,47398.0,0.25433567]
[1641212689918,0.4,47399.0,47398.0,0.14133567]
[1641212690516,0.514,47399.0,47398.0,0.24833567]
[1641212690717,0.514,47399.0,47398.0,0.24733567]
[1641212690917,0.514,47399.0,47398.0,0.24833567]
[1641212691917,0.4,47399.0,47398.0,0.14133567]
[1641212692119,0.4,47399.0,47398.0,0.14033567]
[1641212692527,0.524,47399.0,47398.0,0.26033567]
[1641212692925,0.524,47399.0,47398.0,0.26133567]
[1641212693124,0.61379938,47399.0,47398.0,0.26133567]
[1641212693523,0.61379938,47399.0,47398.0,0.26033567]
[1641212693925,0.48979938,47399.0,47398.0,0.14033567]
[1641212694426,0.48979938,47399.0,47398.0,0.26133567]
[1641212694427,0.61479938,47399.0,47398.0,0.26133567]
[1641212695727,0.48979938,47399.0,47398.0,0.14033567]
[1641212696127,0.48979938,47399.0,47398.0,0.26106643]
[1641212696531,0.61479938,47399.0,47398.0,0.38206643]
[1641212697227,0.61479938,47399.0,47398.0,0.38106643]
[1641212697428,1.47965296,47399.0,47398.0,0.38106643]
[1641212697827,1.35465296,47399.0,47398.0,0.26006643]
[1641212698532,1.47965296,47399.0,47398.0,0.26133567]
[1641212698934,0.61479938,47399.0,47398.0,0.26133567]
[1641212699334,0.61479938,47399.0,47398.0,0.26233567]
[1641212699533,0.61479938,47399.0,47398.0,0.26133567]
[1641212699733,0.48979938,47399.0,47398.0,0.14033567]
[1641212700538,0.59879938,47399.0,47398.0,0.24433567]
[1641212701034,0.59879938,47399.0,47398.0,0.24533567]
[1641212701837,0.48979938,47399.0,47398.0,0.14133567]
[1641212702837,0.60579938,47399.0,47398.0,0.25133567]
[1641212704138,0.48979938,47399.0,47398.0,0.14033567]
[1641212704438,0.60979938,47399.0,47398.0,0.25533567]
[1641212704740,0.60979938,47399.0,47398.0,0.25633567]
[1641212704940,0.60979938,47399.0,47398.0,0.25533567]
[1641212705241,0.60979938,47399.0,47398.0,0.25633567]
[1641212705840,0.48979938,47399.0,47398.0,0.14133567]
[1641212706239,0.48979938,47399.0,47398.0,0.14033567]
[1641212706440,0.61279938,47399.0,47398.0,0.25933567]
[1641212708341,0.48979938,47399.0,47398.0,0.14033567]
[1641212708542,0.60479938,47399.0,47398.0,0.25033567]
[1641212709343,0.60479938,47399.0,47398.0,0.25133567]
[1641212709946,0.48979938,47399.0,47398.0,0.14133567]
[1641212710348,0.48979938,47399.0,47398.0,0.14033567]
[1641212710546,0.60979938,47399.0,47398.0,0.25533567]
[1641212711848,0.48979938,47399.0,47398.0,0.14033567]
[1641212712447,0.60879938,47399.0,47398.0,0.25533567]
[1641212712850,0.60879938,47399.0,47398.0,0.94377621]
[1641212713049,0.60879938,47399.0,47398.0,0.59864243]
[1641212713248,0.78879938,47399.0,47390.0,1.28513327]
[1641212713450,0.58,47391.0,47390.0,1.28513327]
[1641212713650,0.65764,47391.0,47390.0,1.28513327]
[1641212714248,0.65764,47391.0,47390.0,1.3062361]
[1641212714450,0.78664,47391.0,47390.0,1.3062361]
[1641212714649,0.78664,47391.0,47390.0,0.9846361]
[1641212714850,0.78664,47391.0,47376.0,0.14033567]
[1641212715051,0.58,47388.0,47376.0,0.14033567]
[1641212715251,0.58,47381.0,47378.0,1.43698761]
[1641212715455,0.6392,47381.0,47378.0,1.43698761]
[1641212716455,0.14033567,47379.0,47377.0,0.17332753]
[1641212716653,0.58,47378.0,47377.0,0.17332753]
[1641212716856,0.58,47378.0,47374.0,0.04110936]
[1641212717055,0.58,47375.0,47374.0,0.04110936]
[1641212717256,0.58,47375.0,47374.0,0.02]
[1641212718456,0.709,47375.0,47374.0,0.02]
[1641212720057,0.58,47375.0,47374.0,0.02]
[1641212720457,0.71,47375.0,47374.0,0.02]
[1641212721760,0.53,47375.0,47374.0,0.02]
[1641212721960,0.4,47375.0,47374.0,0.0411076]
[1641212722160,0.4,47375.0,47374.0,0.0421076]
[1641212722360,0.4,47375.0,47374.0,0.1357776]
[1641212722560,0.511,47375.0,47374.0,0.1367776]
[1641212722959,0.511,47375.0,47374.0,0.14875585]
[1641212723562,0.111,47375.0,47374.0,0.14875585]
[1641212723861,0.18,47379.0,47374.0,0.14775585]
[1641212724263,0.4,47375.0,47374.0,0.1357776]
[1641212724462,0.526,47375.0,47374.0,0.27711327]
[1641212725061,0.526,47375.0,47374.0,0.27611327]
[1641212725265,0.526,47375.0,47374.0,0.27711327]
[1641212725464,0.526,47375.0,47374.0,0.27611327]
[1641212725667,0.526,47375.0,47374.0,0.27711327]
[1641212725865,0.4,47375.0,47374.0,0.27711327]
[1641212726467,0.523,47375.0,47374.0,0.27711327]
[1641212727265,0.523,47375.0,47374.0,0.27611327]
[1641212727966,0.4,47375.0,47374.0,0.27611327]
[1641212728565,0.523,47375.0,47374.0,0.27611327]
[1641212729368,0.523,47375.0,47374.0,0.27711327]
[1641212729767,0.4,47375.0,47374.0,0.27711327]
[1641212730170,0.4,47375.0,47374.0,0.25600567]
[1641212730370,0.4,47375.0,47374.0,0.16033567]
[1641212730568,0.524,47375.0,47370.0,0.02111124]
[1641212730771,0.4,47371.0,47370.0,0.02111124]
[1641212732570,0.702,47371.0,47370.0,0.02111124]
[1641212732872,0.642,47371.0,47370.0,0.02111124]
[1641212733070,0.522,47371.0,47370.0,0.02111124]
[1641212733872,0.4,47371.0,47370.0,0.02111124]
[1641212734471,0.522,47371.0,47370.0,0.02111124]
[1641212735774,0.4,47371.0,47370.0,0.02111124]
[1641212736476,0.522,47371.0,47370.0,0.02111124]
[1641212737576,0.522,47371.0,47370.0,0.09205124]
[1641212737979,0.4,47371.0,47370.0,0.09205124]
[1641212738579,0.523,47371.0,47370.0,0.02111124]
[1641212739379,0.523,47371.0,47370.0,0.02211124]
[1641212739784,0.4,47371.0,47370.0,0.02211124]
[1641212740188,0.4,47371.0,47370.0,0.03409039]
[1641212740589,0.523,47371.0,47370.0,0.03409039]
[1641212741190,0.523,47371.0,47370.0,0.03309039]
[1641212741391,0.523,47371.0,47370.0,0.02211124]
[1641212741792,0.4,47371.0,47370.0,0.02211124]
[1641212742393,0.4,47371.0,47370.0,0.02111124]
[1641212742595,0.522,47371.0,47370.0,0.02211124]
[1641212742794,0.522,47371.0,47370.0,0.02111124]
[1641212742995,0.522,47371.0,47370.0,0.02211124]
[1641212743393,0.522,47371.0,47370.0,0.03409028]
[1641212743794,0.4,47371.0,47370.0,0.03409028]
[1641212744294,0.4,47371.0,47370.0,0.02211124]
[1641212744494,0.522,47371.0,47370.0,0.02111124]
[1641212745694,0.4,47371.0,47370.0,0.02211124]
[1641212746494,0.522,47371.0,47370.0,0.02211124]
[1641212746697,0.522,47371.0,47370.0,0.03409017]
[1641212747293,0.522,47371.0,47370.0,0.03309017]
[1641212747694,0.122,47371.0,47370.0,0.03309017]
[1641212747896,0.46067134,47380.0,47370.0,0.03309017]
[1641212748295,0.4,47371.0,47370.0,0.03309017]
[1641212748497,0.18,47377.0,47371.0,0.01197893]
[1641212748697,0.4,47372.0,47370.0,0.03309017]
[1641212748900,0.4,47372.0,47370.0,0.02111124]
[1641212749296,0.4,47372.0,47371.0,0.001]
[1641212750099,0.98648209,47372.0,47371.0,0.001]
[1641212750499,1.10848209,47372.0,47371.0,0.001]
[1641212751400,0.70848209,47372.0,47371.0,0.001]
[1641212751999,1.10848209,47372.0,47371.0,0.001]
[1641212752199,0.70848209,47372.0,47371.0,0.001]
[1641212752400,0.98648209,47372.0,47371.0,0.001]
[1641212752602,1.10848209,47372.0,47371.0,0.001]
[1641212753601,1.10848209,47372.0,47370.0,1.21897075]
[1641212753801,0.58648209,47372.0,47370.0,1.21897075]
[1641212754103,0.58648209,47372.0,47371.0,0.83912753]
[1641212754502,0.70148209,47372.0,47371.0,0.83912753]
[1641212754904,1.10148209,47372.0,47371.0,0.001]
[1641212755805,0.98648209,47372.0,47371.0,0.001]
[1641212756405,0.58648209,47372.0,47371.0,0.001]
[1641212756605,1.10148209,47372.0,47371.0,0.001]
[1641212757206,1.10148209,47372.0,47370.0,1.21897075]
[1641212757505,0.62823689,47372.0,47371.0,0.83813367]
[1641212757906,0.51323689,47372.0,47371.0,0.83813367]
[1641212758405,0.4,47372.0,47371.0,0.83813367]
[1641212758605,0.514,47372.0,47371.0,0.83813367]
[1641212759807,0.58,47372.0,47371.0,0.83813367]
[1641212760210,0.51327107,47372.0,47370.0,0.02111124]
[1641212760609,0.62827107,47372.0,47370.0,0.02111124]
[1641212761513,1.28526074,47371.0,47370.0,0.02111124]
[1641212762212,1.57198967,47372.0,47370.0,0.02111124]
[1641212762612,0.115,47371.0,47370.0,0.02111124]
[1641212762812,0.22827107,47371.0,47370.0,0.02211124]
[1641212763813,0.11327107,47371.0,47370.0,0.02211124]
[1641212764013,1.57198967,47372.0,47370.0,0.02211124]
[1641212764213,1.57198967,47372.0,47371.0,0.001]
[1641212764613,1.68698967,47372.0,47370.0,0.02111124]
[1641212764813,1.68698967,47372.0,47371.0,0.001]
[1641212765015,0.515,47372.0,47371.0,0.001]
[1641212765214,0.515,47372.0,47370.0,0.85924491]
[1641212765414,0.515,47372.0,47371.0,0.001]
[1641212765814,0.4,47372.0,47371.0,0.001]
[1641212766515,0.515,47372.0,47371.0,0.001]
[1641212766717,0.515,47372.0,47371.0,1.19885951]
[1641212767116,0.515,47372.0,47371.0,1.19785951]
[1641212767315,0.515,47372.0,47371.0,1.19885951]
[1641212767517,0.515,47372.0,47371.0,1.19785951]
[1641212768516,0.63,47372.0,47371.0,1.19785951]
[1641212769217,0.63,47372.0,47371.0,1.19885951]
[1641212769718,0.63,47372.0,47371.0,1.19785951]
[1641212769917,0.4,47372.0,47371.0,1.19885951]
[1641212770520,1.70434206,47372.0,47371.0,1.19885951]
[1641212771220,1.30434206,47372.0,47371.0,1.19885951]
[1641212771422,0.4,47377.0,47371.0,1.19885951]
[1641212771822,1.41067575,47379.0,47372.0,0.2849629]
[1641212772221,1.14135606,47376.0,47373.0,0.1049629]
[1641212773021,1.14135606,47376.0,47375.0,0.001]
[1641212773220,1.14135606,47376.0,47375.0,0.09458]
[1641212773822,0.4,47378.0,47375.0,0.09458]
[1641212774022,0.4,47378.0,47375.0,0.09358]
[1641212774221,0.68067134,47380.0,47375.0,0.09358]
[1641212774421,0.28067134,47380.0,47379.0,0.02110572]
[1641212774624,0.68067134,47380.0,47379.0,0.02110572]
[1641212774830,0.28067134,47380.0,47379.0,0.02110572]
[1641212775626,1.41067575,47382.0,47379.0,0.21089972]
[1641212775824,1.41067575,47383.0,47381.0,0.001]
[1641212776023,1.41067575,47383.0,47382.0,0.18]
[1641212776223,1.41067575,47383.0,47379.0,0.03089972]
[1641212776423,1.81067575,47383.0,47382.0,0.001]
[1641212776626,1.81067575,47383.0,47382.0,0.23277978]
[1641212777226,1.81067575,47383.0,47382.0,0.114]
[1641212777425,1.81067575,47383.0,47382.0,0.113]
[1641212777626,1.41067575,47383.0,47382.0,0.113]
[1641212777826,1.41067575,47383.0,47379.0,0.35123539]
[1641212778026,0.4,47383.0,47382.0,0.83860398]
[1641212778626,1.41067575,47387.0,47382.0,0.95060398]
[1641212779027,1.41067575,47387.0,47382.0,0.112]
[1641212779227,0.4,47388.0,47382.0,0.112]
[1641212779427,0.4,47388.0,47383.0,0.18]
[1641212779627,0.4,47384.0,47382.0,0.112]
[1641212779829,1.41067575,47389.0,47383.0,0.001]
[1641212780027,1.81067575,47390.0,47384.0,0.83846171]
[1641212780627,0.4,47386.0,47384.0,0.93446171]
[1641212780828,0.4,47386.0,47385.0,0.001]
[1641212781042,1.52667575,47390.0,47385.0,0.001]
[1641212781229,0.4,47386.0,47385.0,0.83846171]
[1641212781627,0.4,47386.0,47385.0,0.83946171]
[1641212782028,0.51284293,47386.0,47385.0,0.95923482]
[1641212782628,0.61084293,47386.0,47385.0,1.07123482]
[1641212783930,0.51284293,47386.0,47385.0,0.95923482]